[Event "4NCL Spring GM Round Robin 2024"]
[Site "Peterborough"]
[Date "2024.03.23"]
[Round "1.1"]
[White "Makkar, Rajat"]
[Black "Gumularz, Szymon"]
[Result "1/2-1/2"]
[ECO "E21"]
[WhiteElo "2434"]
[BlackElo "2590"]
[Annotator "TA"]
[PlyCount "70"]
[EventDate "2024.03.22"]
[EventType "tourn"]
[EventCountry "ENG"]
[SourceTitle "playchess.com"]
[Source "ChessBase"]
[SourceQuality "1"]
[TimeControl "5400+30"]

{[%evp 10,70,3,0,8,11,13,0,3,0,0,-15,0,-6,0,-12,-7,-49,-48,-39,0,0,0,0,0,0,0,0,0,0,0,0,0,0,0,0,0,0,0,0,0,0,0,0,0,0,0,0,0,-8,0,0,-1,-4,0,0,0,0,0,0,0,0,8]} 1. d4 {[%emt 0:00:39]} Nf6 {[%emt 0:00:08]} 2. c4 {[%emt 0:00:17]} e6 {[%emt 0:00:08]} 3. Nc3 {[%emt 0:00:13]} Bb4 {[%emt 0:00:07]} 4. e3 {[%emt 0:00:18]} O-O {[%emt 0:00:10]} 5. Bd2 {[%emt 0:00:04]} b6 {[%emt 0:02:10]} 6. Nf3 {[%emt 0:02:52]} Bxc3 {[%emt 0:03:10]} 7. Bxc3 {[%emt 1:29:37]} Ne4 {[%emt 0:00:09]} 8. Qc2 {[%emt 0:00:00]} Nxc3 {[%emt 0:02:11]} 9. Qxc3 {[%emt 0:00:00]} Bb7 {[%emt 0:00:07]} 10. Bd3 {[%emt 0:00:00]} f5 {[%emt 0:01:00]} 11. O-O-O {[%emt 0:00:00]} Qf6 {[%emt 0:01:41]} 12. Kb1 {[%emt 0:00:00]} c5 {[%emt 0:01:05]} 13. dxc5 {[%emt 0:00:00]} Qxc3 {[%emt 0:01:34]} 14. bxc3 {[%emt 0:00:00]} bxc5 {[%emt 0:01:05]} 15. Bc2 {[%emt 0:00:00] The position is equal.} Kf7 {[%emt 0:02:07]} 16. e4 {[%emt 0:00:00]} fxe4 {[%emt 0:02:33]} 17. Ng5+ {[%emt 0:00:00]} Ke7 {[%emt 0:00:07]} 18. Nxe4 {[%emt 0:00:00]} Bxe4 {[%emt 0:16:07]} 19. Bxe4 {[%emt 0:00:00]} Nc6 {[%emt 0:00:04]} 20. Bxc6 {[%emt 0:00:00]} dxc6 $11 {[%emt 0:00:09][%mdl 4096] Endgame. KRR-KRR} 21. Rd2 {[%emt 0:00:00]} Rf4 {[%emt 0:02:50]} 22. Re1 {[%emt 0:00:00]} Raf8 {[%emt 0:12:21]} 23. f3 {[%emt 0:00:00]} Rxc4 {[%emt 0:00:56]} 24. Rde2 {[%emt 0:08:30]} Rb8+ {[%emt 0:10:07]} 25. Kc2 {[%emt 0:00:00]} Ra4 {[%emt 0:00:06]} 26. Rxe6+ {[%emt 0:00:00]} Kf7 {[%emt 0:00:16]} 27. Rxc6 {[%emt 0:00:00]} Rxa2+ {[%emt 0:00:39]} 28. Kd3 {[%emt 0:00:00]} Rxg2 {[%emt 0:00:50]} 29. Rxc5 {[%emt 0:00:00]} Rd8+ {[%emt 0:03:35]} ({Don't take} 29... Rxh2 30. Rc7+ Kg8 31. Rg1 $17) 30. Kc4 {[%emt 0:00:00]} Rxh2 {[%emt 0:00:22]} 31. Rc7+ {[%emt 0:00:00]} Kg8 {[%emt 0:00:08]} 32. Rg1 {[%emt 0:00:00]} g6 {[%emt 0:04:01]} 33. Ra1 {[%emt 0:00:00]} Rh4+ {[%emt 0:03:57]} 34. Kc5 {[%emt 0:00:00]} Rh5+ {[%emt 0:06:30]} 35. Kc6 {[%emt 0:00:00]} Rf8 {[%emt 0:09:41] Weighted Error Value: White=0.03 (flawless) /Black=0.03 (flawless) .  Inaccurate:     	White=1     	Black=1      OK:         	White=15    	Black=14     Best:        	White=4     	Black=2} 1/2-1/2

[Event "4NCL Spring GM Round Robin 2024"]
[Site "Peterborough"]
[Date "2024.03.23"]
[Round "1.2"]
[White "Kalavannan, Koby"]
[Black "Royal, Shreyas"]
[Result "0-1"]
[ECO "D02"]
[WhiteElo "2324"]
[BlackElo "2457"]
[Annotator "TA"]
[PlyCount "108"]
[EventDate "2024.03.22"]
[EventType "tourn"]
[EventCountry "ENG"]
[SourceTitle "playchess.com"]
[Source "ChessBase"]
[SourceQuality "1"]
[TimeControl "5400+30"]

{[%evp 9,108,0,8,0,0,0,0,0,3,0,8,1,9,0,0,0,0,0,-5,-19,-8,-50,-50,-107,-99,-141,-137,-125,-132,-237,-188,-245,-252,-296,-201,-296,-303,-283,-270,-268,-260,-252,-268,-427,-343,-347,-359,-329,-280,-462,-381,-364,-377,-487,-479,-494,-494,-481,-464,-489,-482,-486,-469,-496,-507,-492,-488,-705,-703,-973,-910,-5006,-5531,-5871,-4622,-5900,-5900,-5874,-613,-527,0,-5871,-5871,-5842,-5364,-1675,-1570,-1570,-1566,-1506,-1391,-1397,-1401,-4570,-4459,-5088,-5072,-4988,-4933,-4910,-4614]} 1. d4 {[%emt 1:31:00]} d5 {[%emt 0:02:11]} 2. Nf3 {[%emt 0:00:00]} Nf6 {[%emt 0:00:16]} 3. g3 {[%emt 0:00:00]} c5 {[%emt 0:01:30]} 4. Bg2 {[%emt 0:00:00]} cxd4 {[%emt 0:00:42]} 5. O-O {[%emt 0:00:00]} h6 {[%emt 0:00:44]} 6. Bf4 {[%emt 0:00:00]} e6 {[%emt 0:03:25]} 7. Nxd4 {[%emt 0:00:00]} g5 {[%emt 0:06:36]} 8. Be5 {[%emt 0:00:00] Zielt auf Nb5 ab. Die Stellung ist ausgeglichen.} Nbd7 {[%emt 0:03:05]} 9. Bxf6 {[%emt 0:00:00]} Nxf6 {[%emt 0:00:40] [#]} 10. c4 $1 {[%emt 0:00:00]} Bg7 {[%emt 0:09:10]} (10... dxc4 11. Nc3) 11. Qa4+ {[%emt 0:00:00]} Bd7 {[%emt 0:11:04]} 12. Qb4 {[%emt 0:00:00]} Qb6 {[%emt 0:04:00]} 13. Qxb6 {[%emt 0:00:00]} axb6 {[%emt 0:01:02]} 14. Na3 {[%emt 0:00:00]} Ke7 {[%emt 0:06:49]} 15. Rfd1 {[%emt 0:00:00]} Ra4 {[%emt 0:02:06]} 16. Rac1 {[%emt 0:00:00] Schwarz hat alles unter Kontrolle.} ({Günstiger ist} 16. cxd5 $15 Nxd5 17. e3) 16... Rc8 $17 {[%emt 0:01:17][%cal Rd5c4]} 17. e3 {[%emt 0:00:00]} dxc4 {[%emt 0:02:45][%cal Oc4c3]} 18. Bxb7 {[%emt 0:00:00]} Rc5 {[%emt 0:00:07][%cal Oc4c3] [#] Und ...c3! würde nun gewinnen.} 19. Ne2 {[%emt 0:00:00]} (19. Rc2 $17) 19... b5 {[%emt 0:05:12]} 20. Bg2 {[%emt 0:01:31]} (20. Nd4 {war einen Versuch wert.}) 20... Nd5 $19 {[%emt 0:01:14][%cal Bf6d5,Bd5b4,Bb4a2][%mdl 32]} 21. Nd4 {[%emt 0:00:57]} Nb4 {[%emt 0:01:52]} 22. Rd2 {[%emt 0:03:42]} (22. Bf1 {ist wohl besser.}) 22... Nxa2 {[%emt 0:02:03]} 23. Rcd1 {[%emt 0:00:02][%cal Od4f5]} Be8 {[%emt 0:00:49]} 24. Nb1 {[%emt 0:00:50]} Ra7 {[%emt 0:03:18]} 25. f4 {[%emt 0:01:12]} b4 {[%emt 0:02:37]} 26. b3 {[%emt 0:01:02]} (26. Be4 {war angesagt.}) 26... cxb3 {[%emt 0:00:21]} 27. Nxb3 {[%emt 0:00:15]} Rcc7 {[%emt 0:00:06][%cal Oe8a4]} 28. Nd4 {[%emt 0:00:51]} Nc3 {[%emt 0:00:35]} 29. Rf1 {[%emt 0:01:00]} (29. Nxc3 bxc3 (29... Rxc3 $2 30. Rb2 $19) 30. Rf2) 29... Bxd4 {[%emt 0:01:52]} 30. exd4 {[%emt 0:00:00]} Bb5 {[%emt 0:00:08]} 31. Re1 {[%emt 0:00:15]} Ra1 {[%emt 0:00:06]} 32. Rb2 {[%emt 0:00:12]} Bd3 {[%emt 0:00:06]} 33. Rxb4 {[%emt 0:01:02]} Rxb1 {[%emt 0:00:05]} 34. Rbxb1 {[%emt 0:00:04]} Bxb1 {[%emt 0:00:25]} 35. fxg5 {[%emt 0:00:15]} hxg5 {[%emt 0:00:08]} 36. d5 {[%emt 0:00:10]} Ba2 {[%emt 0:00:50]} 37. dxe6 {[%emt 0:00:47]} fxe6 {[%emt 0:00:06]} 38. h4 {[%emt 0:00:48]} (38. Bf3 $142) 38... g4 {[%emt 0:01:02]} 39. Re5 {[%emt 0:00:23]} Bd5 {[%emt 0:00:08]} 40. Rg5 {[%emt 0:00:46]} Bxg2 {[%emt 0:01:00]} 41. Kxg2 {[%emt 0:00:41][%mdl 4096] Endspiel. KRN-KR} Rc4 {[%emt 0:00:05]} 42. h5 {[%emt 0:00:19]} Kf6 {[%emt 0:02:28]} 43. Rg8 {[%emt 0:00:26]} Kf7 {[%emt 0:00:47]} 44. Rg5 {[%emt 0:00:21]} Kf6 {[%emt 0:01:50]} 45. Rg8 {[%emt 0:00:02]} Nd5 {[%emt 0:00:26] Schwarz steht klar auf Gewinn.} 46. h6 {[%emt 0:01:40]} Rc7 {[%emt 0:00:09]} 47. Kf2 {[%emt 0:00:41]} Rh7 {[%emt 0:00:03]} 48. Rxg4 {[%emt 0:00:33]} Rxh6 {[%emt 0:00:04]} 49. Kf3 {[%emt 0:00:36]} Rh1 {[%emt 0:00:39]} 50. Rg8 {[%emt 0:00:44]} Ra1 {[%emt 0:00:19]} 51. Rf8+ {[%emt 0:01:04]} Ke5 {[%emt 0:00:01] ( -> ...Rf1+)} 52. Kg4 {[%emt 0:00:11]} Nf6+ {[%emt 0:00:10]} 53. Kf3 {[%emt 0:00:23]} Ra3+ {[%emt 0:00:06]} 54. Kf2 {[%emt 0:00:04]} Ne4+ {[%emt 0:00:03] Gewichteter Fehlerwert: Weiß=0.67/Schwarz=0.27 (präzise) .  Fehler:       	Weiß=7     	---        Ungenau:       	Weiß=3     	Schwarz=1     OK:         	Weiß=9     	Schwarz=16    Bester:       	---       	Schwarz=6} 0-1

[Event "4NCL Spring GM Round Robin 2024"]
[Site "Peterborough"]
[Date "2024.03.23"]
[Round "1.3"]
[White "Chow, Samuel"]
[Black "Wadsworth, Matthew J"]
[Result "0-1"]
[ECO "D10"]
[WhiteElo "2356"]
[BlackElo "2450"]
[Annotator "TA"]
[PlyCount "122"]
[EventDate "2024.03.22"]
[EventType "tourn"]
[EventCountry "ENG"]
[SourceTitle "playchess.com"]
[Source "ChessBase"]
[SourceQuality "1"]
[TimeControl "5400+30"]

{[%evp 10,122,31,21,17,31,21,28,32,30,41,24,20,20,31,28,20,31,30,23,37,20,23,22,83,17,25,31,12,0,0,0,18,0,21,28,22,28,52,30,29,37,67,78,83,75,76,68,89,-21,-38,-37,-33,-40,-35,-35,-11,-51,-37,-29,-39,-39,-28,-27,-28,-32,-26,-32,-24,-26,-23,-50,-51,-144,-163,-211,-183,-210,-230,-151,-170,-200,-222,-238,-248,-241,-241,-412,-412,-459,-458,-429,-294,-452,-438,-2197,-3080,-2277,-1907,-2213,-1822,-2025,-1692,-1516,-1481,-2518,-2118,-5114,-4919,-12209,-10579,-5708,-5089,-29981,-29982]} 1. d4 {[%emt 0:00:06]} d5 {[%emt 0:01:27]} 2. c4 {[%emt 0:00:26]} c6 {[%emt 0:00:31]} 3. Nc3 {[%emt 0:00:44]} Nf6 {[%emt 0:00:11]} 4. e3 {[%emt 0:00:24]} Bf5 {[%emt 0:00:07]} 5. cxd5 {[%emt 0:01:03]} cxd5 {[%emt 0:00:15]} 6. Qb3 {[%emt 0:00:19]} Nc6 {[%emt 0:00:08]} 7. Qxb7 {[%emt 0:00:19]} Bd7 {[%emt 0:00:06]} 8. Qb3 {[%emt 0:00:16][%cal Of1e2]} Rb8 {[%emt 0:00:06] Weiß hat minimalen Vorteil.} 9. Qd1 {[%emt 0:00:08]} e5 {[%emt 0:00:13]} 10. dxe5 {[%emt 0:00:30]} Nxe5 {[%emt 0:00:09]} 11. Be2 {[%emt 0:00:21][%cal Og1f3]} Bd6 {[%emt 0:00:13]} 12. Nf3 {[%emt 0:00:19]} (12. Nxd5 $2 Nxd5 13. h3 (13. Qxd5 $2 Bc6 $19) 13... Qa5+ 14. Kf1 Bb5 $19) 12... Nxf3+ {[%emt 0:00:14]} 13. Bxf3 {[%emt 0:00:11][%cal Oe1g1]} Qc7 {[%emt 0:00:06]} 14. h3 {[%emt 0:00:26][%cal Oe1g1]} (14. Bxd5 O-O $11) 14... O-O {[%emt 0:00:29]} 15. O-O {[%emt 0:00:12]} (15. Bxd5 Rfd8 (15... Nxd5 16. Nxd5 Qc4 17. Nf6+ gxf6 18. Qxd6 $11) 16. O-O Bc6 $15) 15... Rfd8 $1 {[%emt 0:00:26]} 16. Qe2 {[%emt 0:03:03]} (16. Bxd5 Bc6 17. Bxc6 (17. e4 Nxe4 18. Nxe4 Bh2+ 19. Kh1 Rxd5 $15) 17... Bh2+ 18. Kh1 Rxd1 (18... Qxc6 19. Qf3 $16) 19. Rxd1 Bg3 $16) 16... Bh2+ {[%emt 0:01:01]} 17. Kh1 {[%emt 0:00:07][%cal Og2g3]} Be5 {[%emt 0:00:06]} 18. Rd1 {[%emt 0:01:06]} (18. Bxd5 $2 Bxc3 19. Bxf7+ Kxf7 $19) (18. Nxd5 $2 Nxd5 19. a4 (19. Bxd5 $2 Bb5 $19) 19... Nb4 $19) 18... Be6 {[%emt 0:00:16]} 19. Kg1 {[%emt 0:02:23]} Bh2+ {[%emt 0:07:04]} 20. Kh1 {[%emt 0:00:25]} Be5 {[%emt 0:00:32]} 21. Kg1 {[%emt 0:01:09]} Qe7 {[%emt 0:08:36]} 22. Nb5 {[%emt 0:11:54][%cal Bc3b5,Bb5d4,Bd4f3][%mdl 32]} Bd7 {[%emt 0:15:46]} 23. a4 $36 {[%emt 0:04:21][%mdl 2048] Weiss kämpft um Vorteil.} (23. Nxa7 $2 Qc5 (23... Ba4 $2 24. Nc6 $19) 24. a4 (24. Qa6 $2 Ra8 $19) 24... Qxa7 $19) 23... Rb6 {[%emt 0:06:32]} 24. Bd2 {[%emt 0:05:58] [#] Und Ba5 würde nun gewinnen.} (24. Nxa7 $2 {geht unter.} Ra8 25. a5 Rxa7 $19) 24... Rdb8 $1 {[%emt 0:14:12]} 25. Bc3 {[%emt 0:05:40]} a6 {[%emt 0:05:00]} 26. Bxe5 {[%emt 0:06:08]} (26. Nd4 {sieht schärfer aus.} Ne4 27. Qd3 Qh4 28. Bxe4 dxe4 29. Nf3) 26... Qxe5 {[%emt 0:00:01]} 27. Nd4 {[%emt 0:00:19]} Ne4 {[%emt 0:00:21]} 28. Bxe4 {[%emt 0:06:58]} dxe4 {[%emt 0:00:12]} 29. f4 {[%emt 0:00:43]} (29. Rd2 $16) 29... exf3 $11 {[%emt 0:00:47]} 30. Nxf3 {[%emt 0:00:18]} Qe8 {[%emt 0:00:46]} (30... Qxb2 $2 {verliert.} 31. Qxb2 Rxb2 32. Rxd7 $18) 31. Rd2 {[%emt 0:11:32]} Bxa4 {[%emt 0:12:13]} 32. Nd4 {[%emt 0:00:33]} h6 {[%emt 0:02:02]} 33. Ra3 {[%emt 0:01:41][%cal Ba1a3,Ba3c3,Bc3c4,Bc4e4,Be4e7][%mdl 32]} (33. Nf5 {hält die Spannung aufrecht.} Bc6 34. Qg4 Qe5 35. Qf4) 33... Bc6 {[%emt 0:06:32]} 34. Nxc6 {[%emt 0:01:25]} Qxc6 {[%emt 0:00:08]} 35. Rc3 {[%emt 0:06:51]} Qe4 {[%emt 0:01:04]} 36. Rdc2 {[%emt 0:01:08]} Kh7 {[%emt 0:00:56]} 37. Rc4 {[%emt 0:01:07]} Qe6 {[%emt 0:01:38][%cal Ob6b2]} 38. Qd3+ {[%emt 0:01:33]} g6 {[%emt 0:01:17]} 39. Re4 {[%emt 0:05:28]} Qa2 {[%emt 0:00:52]} 40. Re7 {[%emt 0:03:27]} Rxb2 {[%emt 0:01:34]} 41. Rxb2 {[%emt 0:06:22] Schwarz hat alles unter Kontrolle.} (41. Qd7 $1 $15 Qa1+ (41... Rxc2 42. Rxf7+ $11) 42. Kh2 Rxc2 43. Rxf7+ Kg8 44. Qe6) 41... Rxb2 $15 {[%emt 0:00:08][%mdl 4096] Endspiel. KQR-KQR} 42. Qe4 {[%emt 0:00:07]} (42. Qf1 {war angesagt.}) 42... Qb1+ {[%emt 0:04:08]} 43. Qxb1 {[%emt 0:00:10]} Rxb1+ $19 {[%emt 0:00:10] KR-KR} 44. Kf2 {[%emt 0:00:47]} Kg7 {[%emt 0:00:05]} 45. Ra7 {[%emt 0:00:17]} Ra1 {[%emt 0:01:21]} 46. e4 {[%emt 0:01:03]} a5 {[%emt 0:05:00]} 47. e5 {[%emt 0:04:58]} Kf8 {[%emt 0:00:01] Droht stark ...a4.} 48. Ke2 $2 {[%emt 0:00:20]} (48. Ke3) 48... a4 {[%emt 0:00:50]} 49. Kd3 {[%emt 0:00:16]} a3 {[%emt 0:01:18] [#] ...a2 ist eine echte Drohung.} 50. Kc3 {[%emt 0:00:07]} h5 {[%emt 0:01:48]} 51. h4 {[%emt 0:02:00]} (51. Kc4 {ist eine bessere Verteidigung.}) 51... a2 {[%emt 0:01:24]} 52. Kb2 {[%emt 0:00:28] Verhindert Rc1} (52. Kb3 $142) 52... Rg1 {[%emt 0:00:24]} 53. Kxa2 {[%emt 0:00:20]} Rxg2+ {[%emt 0:00:07]} 54. Kb3 {[%emt 0:00:02]} Rg4 {[%emt 0:00:11]} 55. Kc3 {[%emt 0:00:35]} Rxh4 {[%emt 0:01:25]} 56. Kd3 {[%emt 0:00:05]} Rf4 {[%emt 0:01:02]} 57. Ke3 {[%emt 0:00:06]} g5 {[%emt 0:00:20]} 58. Ra5 {[%emt 0:02:04]} h4 {[%emt 0:00:47]} 59. e6 {[%emt 0:00:31]} f6 {[%emt 0:00:01]} (59... fxe6 60. Rxg5 Rb4 61. Kf3 $19) 60. Ra7 {[%emt 0:00:10]} h3 {[%emt 0:00:35]} 61. Rh7 {[%emt 0:00:34]} Rh4 {[%emt 0:00:07] Gewichteter Fehlerwert: Weiß=0.68/Schwarz=0.07 (makellos) .  Fehler:       	Weiß=6     	---        Ungenau:       	Weiß=3     	Schwarz=2     OK:         	Weiß=24    	Schwarz=15    Bester:       	Weiß=1     	Schwarz=10    Stark:        	---       	Schwarz=2} 0-1

[Event "4NCL Spring GM Round Robin 2024"]
[Site "Peterborough"]
[Date "2024.03.23"]
[Round "1.4"]
[White "Teclaf, Pawel"]
[Black "Agdelen, Huseyin Can"]
[Result "1-0"]
[ECO "A13"]
[WhiteElo "2556"]
[BlackElo "2408"]
[Annotator "TA"]
[PlyCount "65"]
[EventDate "2024.03.22"]
[EventType "tourn"]
[EventCountry "ENG"]
[SourceTitle "playchess.com"]
[Source "ChessBase"]
[SourceQuality "1"]
[TimeControl "5400+30"]

{[%evp 14,65,10,13,14,16,11,13,16,14,32,27,31,25,62,39,42,36,124,112,133,131,128,137,134,140,154,149,154,138,242,236,216,189,178,178,164,168,258,257,260,258,270,263,270,270,262,247,337,337,677,658,696,696]} 1. c4 {[%emt 0:00:03]} e6 {[%emt 0:00:44]} 2. g3 {[%emt 0:01:13]} d5 {[%emt 0:00:59]} 3. Bg2 {[%emt 0:02:41]} Nf6 {[%emt 0:00:54]} 4. Nf3 {[%emt 0:00:05]} d4 {[%emt 0:08:45]} 5. O-O {[%emt 0:00:11]} c5 {[%emt 0:00:09]} 6. e3 {[%emt 0:00:09]} Nc6 {[%emt 0:00:08]} 7. exd4 {[%emt 0:00:05]} cxd4 {[%emt 0:00:04]} 8. d3 {[%emt 0:00:05]} Bc5 {[%emt 0:06:10]} 9. Bg5 {[%emt 0:08:51]} h6 {[%emt 0:01:38]} 10. Bxf6 {[%emt 0:00:17]} Qxf6 {[%emt 0:00:04] The position is equal.} 11. Nbd2 {[%emt 0:02:31]} Qe7 {[%emt 0:00:09]} 12. Nb3 {[%emt 0:13:39]} Bb6 {[%emt 0:13:25]} 13. Rc1 {[%emt 0:07:58]} Qd8 {[%emt 0:08:59]} 14. Qe2 {[%emt 0:06:07]} (14. c5 $5 Bc7 15. Nbd2 $11) 14... O-O {[%emt 0:10:01]} 15. Ne5 {[%emt 0:02:52]} Bd7 {[%emt 0:09:30] Black is now going downhill.} ({Black should try} 15... Nxe5 $14 16. Qxe5 f6) 16. Nxc6 $16 {[%emt 0:05:54]} Bxc6 {[%emt 0:00:42]} 17. Bxc6 {[%emt 0:00:05]} bxc6 {[%emt 0:00:05] [#]} 18. c5 $1 {[%emt 0:00:03]} Bc7 {[%emt 0:01:37][%cal Bb6c7,Bc7d8,Bd8f6][%mdl 32]} 19. Qe4 {[%emt 0:00:13][%csl LRc6,LRd4]} Qd5 {[%emt 0:11:19]} 20. Nxd4 {[%emt 0:04:01]} Qxa2 {[%emt 0:02:07]} 21. Nxc6 {[%emt 0:08:28] White is more active.} Qxb2 {[%emt 0:00:58]} (21... a5 $16 22. d4 Qb3) 22. Rb1 $18 {[%emt 0:01:48]} Qa3 {[%emt 0:00:51]} 23. Qc4 {[%emt 0:03:44]} Bd8 {[%emt 0:03:58]} 24. Rfc1 {[%emt 0:08:07]} Bf6 {[%emt 0:02:13] Repels Rc3} 25. Rc2 $36 {[%emt 0:00:11][%mdl 2048] White is on the roll.} (25. d4 Qf3 26. Ne5 Bxe5 27. dxe5 a5 $16) 25... Rac8 {[%emt 0:03:34]} (25... a5 {might work better.} 26. Ra2 Qc3) 26. Ra2 {[%emt 0:00:29]} Qxa2 {[%emt 0:03:27]} 27. Qxa2 {[%emt 0:00:04]} Rxc6 {[%emt 0:00:03]} 28. Qxa7 {[%emt 0:05:41] [#] And now Rb8 would win.} Rfc8 {[%emt 0:05:14]} 29. Rb5 {[%emt 0:00:59]} R6c7 {[%emt 0:02:12]} 30. Qa4 {[%emt 0:01:16]} g6 {[%emt 0:03:59]} 31. d4 {[%emt 0:02:32]} Bg7 $2 {[%emt 0:01:28]} (31... Rd8 32. Rb4 Kh7) 32. Qb4 {[%emt 0:01:26]} Rd7 {[%emt 0:00:31]} 33. Rb8 {[%emt 0:00:09] Weighted Error Value: White=0.03 (flawless) /Black=0.44.  Mistake:       	---       	Black=4      Inaccurate:     	---       	Black=2      OK:         	White=14    	Black=9      Best:        	White=2     	Black=1      Strong:       	White=1     	---} 1-0

[Event "4NCL Spring GM Round Robin 2024"]
[Site "Peterborough"]
[Date "2024.03.23"]
[Round "1.5"]
[White "Harvey, Marcus R"]
[Black "Cherniaev, Alexander"]
[Result "1-0"]
[ECO "A42"]
[WhiteElo "2468"]
[BlackElo "2375"]
[Annotator "TA"]
[PlyCount "109"]
[EventDate "2024.03.22"]
[EventType "tourn"]
[EventCountry "ENG"]
[SourceTitle "playchess.com"]
[Source "ChessBase"]
[SourceQuality "1"]
[TimeControl "5400+30"]

{[%evp 9,109,29,69,64,72,48,52,45,50,43,69,57,54,37,54,35,38,41,47,32,45,22,30,23,22,22,33,22,27,20,32,36,99,91,102,89,93,93,93,47,55,46,49,0,0,0,0,0,0,0,0,-108,0,-5,-7,-29,0,0,0,0,102,91,544,0,0,0,91,86,95,93,81,83,90,90,73,83,98,102,105,114,156,67,246,6,17,0,0,0,465,465,1059,1045,827,868,1344,1218,4550,4133,3297,2134,1562,1281]} 1. c4 {[%emt 0:00:01]} g6 {[%emt 0:01:36]} 2. e4 {[%emt 0:00:05]} Bg7 {[%emt 0:00:14]} 3. d4 {[%emt 0:00:04]} d6 {[%emt 0:00:08]} 4. Nc3 {[%emt 0:00:28]} e5 {[%emt 0:00:09]} 5. d5 {[%emt 0:02:12]} h5 {[%emt 0:02:47]} 6. Bd3 {[%emt 0:02:10]} Bh6 {[%emt 0:00:41]} 7. Bxh6 {[%emt 0:01:38]} Nxh6 {[%emt 0:01:24]} 8. Qd2 {[%emt 0:00:05] White is slightly better.} Nd7 {[%emt 0:02:59]} 9. Bc2 {[%emt 0:02:20]} Ng4 {[%emt 0:08:48]} 10. Nf3 {[%emt 0:01:55]} Ngf6 {[%emt 0:01:15]} 11. Ng5 {[%emt 0:04:50]} h4 {[%emt 1:15:59]} 12. O-O-O {[%emt 0:02:30]} Nh7 {[%emt 0:00:00]} 13. Nxh7 {[%emt 0:03:28]} Rxh7 {[%emt 0:00:00]} 14. Rdf1 {[%emt 0:00:33]} a6 {[%emt 0:00:00][%cal Ob7b5]} 15. g3 {[%emt 0:08:00]} Nb6 {[%emt 0:00:00]} 16. Bd3 {[%emt 0:07:47]} Bh3 {[%emt 0:00:00]} 17. Rfg1 {[%emt 0:00:48] aiming for g4.} Bg4 {[%emt 0:00:00] ...Bf3 would now be deadly.} 18. h3 {[%emt 0:02:22]} Bd7 {[%emt 0:00:00]} 19. f4 {[%emt 0:00:20] Black must now prevent fxe5.} Qe7 {[%emt 0:00:00]} 20. g4 {[%emt 0:17:22]} Kf8 {[%emt 0:00:00]} (20... exf4 $14 21. Rf1 (21. Qxf4 O-O-O $16) 21... O-O-O) 21. Rf1 $16 {[%emt 0:03:20]} exf4 {[%emt 0:00:00]} 22. Qxf4 {[%emt 0:00:12][%cal Oc4c5]} Na4 {[%emt 0:00:00]} 23. Nxa4 {[%emt 0:02:47]} Bxa4 {[%emt 0:00:00] [#]} 24. c5 {[%emt 0:00:19]} Bb5 $14 {[%emt 0:00:00]} 25. cxd6 {[%emt 0:03:21]} cxd6 {[%emt 0:00:00]} 26. Bxb5 {[%emt 0:00:32]} (26. Kd2 $14) 26... axb5 $11 {[%emt 0:00:00]} 27. Kb1 {[%emt 0:00:04]} Ra4 {[%emt 0:00:00]} 28. Re1 {[%emt 0:00:05]} Kg7 {[%emt 0:00:00]} 29. Rhf1 {[%emt 0:10:33]} Rh8 {[%emt 0:00:00]} 30. Qf3 {[%emt 0:01:46]} (30. b3 $11 Rd4 31. g5) 30... Rd4 {[%emt 0:01:01]} (30... Re8 $1 $17 {[%cal Ra4e4]} 31. Ka1 Rea8 (31... Rxe4 32. Rxe4 Qxe4 33. Qxf7+ Kh6 34. Qf2 $11) 32. Qc3+ Kg8) 31. g5 {[%emt 0:04:25]} Re8 {[%emt 0:02:30][%cal Rd4e4]} 32. Ka1 {[%emt 0:00:05]} (32. Qc3 $5 Qe5 $8 33. Qf3 $15) 32... Rc8 {[%emt 0:00:38][%cal Oc8c7]} (32... Qxg5 33. Qxf7+ Kh6 34. Qxe8 Qe5 35. Qxe5 (35. Qxb5 Rd2 $18) 35... dxe5 36. Rd1 Rxe4 37. d6) 33. Qf2 $36 {[%emt 0:02:35][%csl LRd4,LRh4][%mdl 2048] White fights for an advantage.} Ra4 {[%emt 0:05:33]} (33... Rxe4 $2 34. Qf6+ Qxf6 35. gxf6+ Kh7 36. Rxe4 $18) (33... Rcc4 $2 34. b3 Rb4 35. a3 $18 (35. Qxh4 $2 Qe5 $19)) 34. b3 {[%emt 0:04:28] Really sharp!} Ra6 {[%emt 0:00:21]} (34... Qe5+ $11 35. Kb1 Rxe4 36. Qxf7+ Kh8) 35. Kb1 $1 $16 {[%emt 0:02:33]} (35. Qxh4 $2 Rc2 $19) 35... Rc3 $2 {[%emt 0:01:15][%mdl 8192] [#]} (35... Kg8 $16) 36. Qf6+ $2 {[%emt 0:01:03]} (36. e5 $1 $18 {[%cal Re5d6]} dxe5 (36... Qxg5 $2 37. Qxf7+ Kh6 38. Qf8+ Kh5 39. exd6 $18) 37. Rxe5) 36... Qxf6 $11 {[%emt 0:00:06]} 37. Rxf6 {[%emt 0:00:10][%mdl 4096] Endgame. KRR-KRR} b4 {[%emt 0:00:36]} (37... Rxh3 $2 {loses.} 38. Ref1 Ra8 39. Rxf7+ Kg8 40. R7f6 $18 (40. Rxb7 Rg3 $14)) (37... Rg3 $11) 38. Ref1 $16 {[%emt 0:01:41]} Rc7 {[%emt 0:00:05]} 39. R6f4 {[%emt 0:01:53]} Ra5 {[%emt 0:00:59]} 40. Rxh4 {[%emt 0:00:14]} Rac5 {[%emt 0:00:04]} 41. Rhf4 {[%emt 0:01:25] White is more active.} Rc3 {[%emt 0:00:07]} 42. R4f3 {[%emt 0:00:33]} b5 {[%emt 0:00:51]} 43. h4 {[%emt 0:01:01]} Re7 {[%emt 0:00:16]} 44. Rxc3 {[%emt 0:01:52]} bxc3 {[%emt 0:00:06] KR-KR} 45. Re1 {[%emt 0:01:36]} (45. Rf4 $16 {a3 is the strong threat.} Ra7 46. Rf6) 45... f5 $2 {[%emt 0:01:08] [#]} (45... b4 $1 $14) 46. gxf6+ $2 {[%emt 0:00:28]} (46. a3 $1 $18) 46... Kxf6 $11 {[%emt 0:00:01]} 47. a3 {[%emt 0:00:31]} Ke5 {[%emt 0:01:28]} 48. Kc2 {[%emt 0:00:05]} Ra7 $2 {[%emt 0:00:27][%mdl 8192]} (48... Rh7 $1 $11) 49. Kxc3 $18 {[%emt 0:00:53] White is clearly winning.} Rxa3 {[%emt 0:01:28]} (49... Rh7 $142 50. Kb4 Rxh4) 50. Kb4 {[%emt 0:00:24][%csl LRa3,LRb5]} Ra8 {[%emt 0:00:00]} 51. Kxb5 {[%emt 0:00:22]} Rb8+ {[%emt 0:00:00]} 52. Kc6 {[%emt 0:01:32]} Rxb3 {[%emt 0:00:00]} 53. Rg1 {[%emt 0:00:17]} Rc3+ {[%emt 0:00:13]} 54. Kd7 {[%emt 0:00:06]} Kxe4 {[%emt 0:01:06]} 55. Ke6 {[%emt 0:01:01] Weighted Error Value: White=0.34/Black=0.55.  Loses game:     	---       	Black=3      Missed win:     	White=2     	---        Mistake:       	White=4     	Black=5      Inaccurate:     	---       	Black=3      OK:         	White=15    	Black=16     Best:        	White=5     	Black=2      Strong:       	White=1     	---} ({Inferior is} 55. Rxg6 Kxd5 56. h5 (56. Rxd6+ Ke5 $11) 56... Ke5 $11) 1-0